[Event "44th Chess Olympiad Open 2022"]
[Site "Chennai"]
[Date "2022.08.09"]
[Round "11.40"]
[White "Altorky, Amer"]
[Black "Barrish, Daniel"]
[Result "0-1"]
[ECO "B25"]
[WhiteElo "2040"]
[BlackElo "2283"]
[Annotator "RC"]
[PlyCount "134"]
[EventDate "2022.07.29"]
[EventType "team-tourn"]
[EventCountry "IND"]
[SourceTitle "playchess.com"]
[Source "ChessBase"]
[SourceQuality "1"]
[WhiteTeam "Syria"]
[BlackTeam "South Africa"]
[WhiteTeamCountry "SYR"]
[BlackTeamCountry "RSA"]
[TimeControl "40/5400+30:1800+30"]

1. e4 {[%emt 0:00:08]} c5 {[%emt 0:00:11]} 2. Nc3 {[%emt 0:00:20]} d6 {[%emt 0:00:15]} 3. g3 {[%emt 0:00:28]} Nc6 {[%emt 0:00:10]} 4. Bg2 {[%emt 0:00:07]} g6 {[%emt 0:00:08]} 5. d3 {[%emt 0:00:13]} Bg7 {[%emt 0:00:15]} 6. f4 {[%emt 0:00:14]} e6 {[%emt 0:01:01]} 7. Nf3 {[%emt 0:06:04]} Nge7 {[%emt 0:01:43]} 8. O-O {[%emt 0:00:11]} O-O {[%emt 0:02:13]} 9. Be3 {[%emt 0:00:37]} Nd4 {[%emt 0:00:49]} 10. Bf2 {[%emt 0:00:31]} e5 {[%emt 0:15:37]} 11. Nxd4 {[%emt 0:14:40]} exd4 {[%emt 0:05:20]} 12. Ne2 {[%emt 0:00:50]} d5 {[%emt 0:01:21]} 13. e5 {[%emt 0:06:22]} b6 {[%emt 0:10:17]} 14. c3 {[%emt 0:01:59]} dxc3 {[%emt 0:00:07]} 15. bxc3 {[%emt 0:00:04]} Bf5 {[%emt 0:05:30]} 16. h3 {[%emt 0:07:08]} h5 {[%emt 0:00:47]} 17. a4 {[%emt 0:00:45]} Rc8 {[%emt 0:02:57]} 18. Kh2 {[%emt 0:02:39]} Qd7 {[%emt 0:02:47]} 19. Ng1 {[%emt 0:04:21]} Rfd8 {[%emt 0:06:38]} 20. Nf3 {[%emt 0:02:43]} c4 {[%emt 0:08:59]} 21. d4 {[%emt 0:01:54]} a6 {[%emt 0:01:45]} 22. Re1 {[%emt 0:02:29]} b5 {[%emt 0:02:55]} 23. axb5 {[%emt 0:00:44]} axb5 {[%emt 0:00:07]} 24. Ra6 {[%emt 0:02:55]} Ra8 {[%emt 0:03:33]} 25. Qa1 {[%emt 0:12:55]} Qb7 {[%emt 0:01:16]} 26. Ra3 {[%emt 0:00:10]} Nc6 {[%emt 0:06:44]} 27. Nh4 {[%emt 0:07:28]} Rxa3 {[%emt 0:03:15]} 28. Qxa3 {[%emt 0:00:07]} Bd3 {[%emt 0:06:17]} 29. e6 {[%emt 0:07:06]} Bf8 {[%emt 0:00:48]} 30. Qc1 {[%emt 0:04:46]} f6 {[%emt 0:04:59]} 31. f5 {[%emt 0:07:56]} g5 {[%emt 0:00:35]} 32. Ng6 {[%emt 0:00:46]} Bxf5 {[%emt 0:00:29]} 33. Nxf8 {[%emt 0:00:13]} Kxf8 {[%emt 0:00:44]} 34. h4 {[%emt 0:00:27]} Qg7 {[%emt 0:03:47]} 35. Be3 {[%emt 0:01:07]} Be4 {[%emt 0:01:57]} 36. hxg5 {[%emt 0:01:07]} f5 {[%emt 0:00:18]} 37. Bf4 {[%emt 0:00:53]} Qe7 {[%emt 0:01:25]} 38. g6 {[%emt 0:01:01]} Qxe6 {[%emt 0:00:13]} 39. Bh6+ {[%emt 0:00:36]} Kg8 {[%emt 0:00:14]} 40. Qg5 {[%emt 0:00:36]} Rd6 {[%emt 0:01:03]} 41. Qf4 {[%emt 0:33:53]} Qxg6 {[%emt 0:05:30]} 42. Bg5 {[%emt 0:00:00]} Re6 {[%emt 0:07:06]} 43. Ra1 {[%emt 0:00:00]} Bxg2 {[%emt 0:01:29]} 44. Kxg2 {[%emt 0:00:00]} Re8 {[%emt 0:06:30]} 45. Ra6 {[%emt 0:00:00]} Qe6 {[%emt 0:01:08]} 46. Kh3 {[%emt 0:00:00]} Qd7 {[%emt 0:05:30]} 47. Bf6 {[%emt 0:00:00]} Kf7 {[%emt 0:00:20]} 48. Be5 {[%emt 0:00:00]} Rg8 {[%emt 0:02:28]} 49. Qh6 {[%emt 0:00:00]} f4+ {[%emt 0:00:05]} 50. Kg2 {[%emt 0:00:00]} Rxg3+ {[%emt 0:00:28]} 51. Kf2 {[%emt 0:00:00]} Qf5 {[%emt 0:00:56]} 52. Qxf4 {[%emt 0:00:00]} Qxf4+ {[%emt 0:00:12]} 53. Bxf4 {[%emt 0:00:00]} Rg6 {[%emt 0:00:03]} 54. Rb6 {[%emt 0:00:00]} Rf6 {[%emt 0:01:07]} 55. Ke3 {[%emt 0:00:00]} Re6+ {[%emt 0:00:35]} 56. Kf2 {[%emt 0:00:00]} b4 {[%emt 0:00:47]} 57. cxb4 {[%emt 0:00:00]} Nxd4 {[%emt 0:00:15]} 58. Rb7+ {[%emt 0:00:00]} Re7 {[%emt 0:00:30]} 59. Rb6 {[%emt 0:00:00]} Re2+ {[%emt 0:00:42]} 60. Kf1 {[%emt 0:00:00]} Re6 {[%emt 0:00:24]} 61. Rb7+ {[%emt 0:00:00]} Kg6 {[%emt 0:01:25]} 62. Bd2 {[%emt 0:00:00]} Nb3 {[%emt 0:00:55]} 63. Be1 {[%emt 0:00:00]} d4 {[%emt 0:00:30]} 64. Rc7 {[%emt 0:00:11]} c3 {[%emt 0:01:47]} 65. b5 {[%emt 0:01:14]} Rb6 {[%emt 0:01:44]} 66. Ke2 {[%emt 0:00:48]} Rxb5 {[%emt 0:00:14]} 67. Kd3 {[%emt 0:00:21]} Rc5 {[%emt 0:00:37]} 0-1

[Event "44th Chess Olympiad Open 2022"]
[Site "Chennai"]
[Date "2022.08.09"]
[Round "11.41"]
[White "Ziska, Helgi Dam"]
[Black "Wanyama, Harold"]
[Result "1/2-1/2"]
[ECO "B47"]
[WhiteElo "2549"]
[BlackElo "2242"]
[Annotator "RC"]
[PlyCount "133"]
[EventDate "2022.07.29"]
[EventType "team-tourn"]
[EventCountry "IND"]
[SourceTitle "playchess.com"]
[Source "ChessBase"]
[SourceQuality "1"]
[WhiteTeam "Faroe Islands"]
[BlackTeam "Uganda"]
[WhiteTeamCountry "FAI"]
[BlackTeamCountry "UGA"]
[TimeControl "40/5400+30:1800+30"]

1. e4 {[%emt 0:00:06]} c5 {[%emt 0:00:42]} 2. Nf3 {[%emt 0:00:25]} e6 {[%emt 0:00:10]} 3. d4 {[%emt 0:00:31]} cxd4 {[%emt 0:00:09]} 4. Nxd4 {[%emt 0:00:06]} Nc6 {[%emt 0:00:06]} 5. Nc3 {[%emt 0:00:28]} Qc7 {[%emt 0:00:10]} 6. Be2 {[%emt 0:01:48]} a6 {[%emt 0:00:13]} 7. Nxc6 {[%emt 0:00:21]} bxc6 {[%emt 0:01:56]} 8. Qd3 {[%emt 0:03:38]} d5 {[%emt 0:00:44]} 9. Qg3 {[%emt 0:01:08]} Qxg3 {[%emt 0:01:17]} 10. hxg3 {[%emt 0:00:08]} Nf6 {[%emt 0:00:05]} 11. g4 {[%emt 0:16:09]} Bb4 {[%emt 0:16:02]} 12. Bd2 {[%emt 0:01:23]} d4 {[%emt 0:02:00]} 13. Nb1 {[%emt 0:06:22]} Rb8 {[%emt 0:00:36]} 14. e5 {[%emt 0:21:15]} Nd7 {[%emt 0:01:32]} 15. f4 {[%emt 0:00:13]} Bxd2+ {[%emt 0:02:28]} 16. Nxd2 {[%emt 0:00:06]} Rxb2 {[%emt 0:00:17]} 17. Nb3 {[%emt 0:02:22]} Rxc2 {[%emt 0:01:48]} 18. Nxd4 {[%emt 0:00:09]} Rb2 {[%emt 0:00:41]} 19. Nxc6 {[%emt 0:03:44]} Bb7 {[%emt 0:00:26]} 20. Bf3 {[%emt 0:04:03]} Rc2 {[%emt 0:06:19]} 21. Nd4 {[%emt 0:00:36]} Rc7 {[%emt 0:11:19]} 22. Bxb7 {[%emt 0:03:48]} Rxb7 {[%emt 0:00:07]} 23. O-O {[%emt 0:00:09]} O-O {[%emt 0:00:25]} 24. Rac1 {[%emt 0:02:44]} g5 {[%emt 0:02:37]} 25. g3 {[%emt 0:01:07]} Rb4 {[%emt 0:00:14]} 26. Rfd1 {[%emt 0:05:19]} Nb6 {[%emt 0:03:31]} 27. f5 {[%emt 0:00:30]} Re8 {[%emt 0:03:23]} 28. fxe6 {[%emt 0:05:45]} fxe6 {[%emt 0:00:35]} 29. Rc6 {[%emt 0:00:09]} Nc4 {[%emt 0:01:23]} 30. Nc2 {[%emt 0:06:51]} Ra4 {[%emt 0:00:46]} 31. Rd4 {[%emt 0:00:20]} Nxe5 {[%emt 0:00:33]} 32. Rxa4 {[%emt 0:00:06]} Nxc6 {[%emt 0:00:05]} 33. Rxa6 {[%emt 0:00:05]} Ne5 {[%emt 0:00:10]} 34. Ne3 {[%emt 0:00:19]} Kf7 {[%emt 0:00:53]} 35. a4 {[%emt 0:01:18]} Rd8 {[%emt 0:01:00]} 36. Ra7+ {[%emt 0:00:16]} Kg6 {[%emt 0:01:26]} 37. Re7 {[%emt 0:00:28]} Rd6 {[%emt 0:00:42]} 38. Rc7 {[%emt 0:03:56]} Rd4 {[%emt 0:09:34]} 39. a5 {[%emt 0:00:11]} Ra4 {[%emt 0:00:35]} 40. Re7 {[%emt 0:02:46]} Kf6 {[%emt 0:06:32]} 41. Rxh7 {[%emt 0:30:07]} Rxa5 {[%emt 0:30:06]} 42. Rh6+ {[%emt 0:00:49]} Ke7 {[%emt 0:00:10]} 43. Rh7+ {[%emt 0:03:01]} Kd6 {[%emt 0:00:46]} 44. Rg7 {[%emt 0:02:36]} Ra1+ {[%emt 0:00:40]} 45. Kf2 {[%emt 0:01:44]} Ra2+ {[%emt 0:00:05]} 46. Kf1 {[%emt 0:00:23]} Nf3 {[%emt 0:00:47]} 47. Rb7 {[%emt 0:02:13]} Nd2+ {[%emt 0:01:14]} 48. Kg1 {[%emt 0:00:20]} Ke5 {[%emt 0:05:11]} 49. Rb4 {[%emt 0:01:55]} Nf3+ {[%emt 0:00:30]} 50. Kf1 {[%emt 0:00:19]} Nd4 {[%emt 0:01:04]} 51. Rc4 {[%emt 0:00:00]} Ke4 {[%emt 0:00:00]} 52. Nd1 {[%emt 0:00:00]} Ra1 {[%emt 0:00:00]} 53. Ke1 {[%emt 0:00:00]} e5 {[%emt 0:00:00]} 54. Rc3 {[%emt 0:00:00]} Nf3+ {[%emt 0:00:00]} 55. Ke2 {[%emt 0:00:00]} Ra2+ {[%emt 0:00:00]} 56. Kf1 {[%emt 0:00:00]} Nh2+ {[%emt 0:00:00]} 57. Ke1 {[%emt 0:00:00]} Nxg4 {[%emt 0:00:00]} 58. Rb3 {[%emt 0:00:00]} Rh2 {[%emt 0:00:00]} 59. Ra3 {[%emt 0:00:00]} Kf5 {[%emt 0:00:00]} 60. Rf3+ {[%emt 0:00:00]} Kg6 {[%emt 0:00:00]} 61. Ra3 {[%emt 0:00:00]} Rc2 {[%emt 0:00:00]} 62. Ra4 {[%emt 0:00:00]} Nf6 {[%emt 0:05:33]} 63. Nf2 {[%emt 0:00:00]} Kh5 {[%emt 0:02:05]} 64. g4+ {[%emt 0:00:00]} Kg6 {[%emt 0:01:12]} 65. Ra5 {[%emt 0:00:00]} e4 {[%emt 0:01:35]} 66. Nh3 {[%emt 0:00:00]} Nh7 {[%emt 0:02:27]} 67. Ra6+ {[%emt 0:00:00]} 1/2-1/2

[Event "44th Chess Olympiad Open 2022"]
[Site "Chennai"]
[Date "2022.08.09"]
[Round "11.41"]
[White "Egilstoft, Rogvi"]
[Black "Okas, Walter"]
[Result "0-1"]
[ECO "B10"]
[WhiteElo "2284"]
[BlackElo "2191"]
[Annotator "RC"]
[PlyCount "80"]
[EventDate "2022.07.29"]
[EventType "team-tourn"]
[EventCountry "IND"]
[SourceTitle "playchess.com"]
[Source "ChessBase"]
[SourceQuality "1"]
[WhiteTeam "Faroe Islands"]
[BlackTeam "Uganda"]
[WhiteTeamCountry "FAI"]
[BlackTeamCountry "UGA"]
[TimeControl "40/5400+30:1800+30"]

1. e4 {[%emt 0:00:09]} c6 {[%emt 0:00:39]} 2. d3 {[%emt 0:00:55]} d5 {[%emt 0:01:07]} 3. Nd2 {[%emt 0:00:09]} Nd7 {[%emt 0:04:55]} 4. g3 {[%emt 0:00:27]} Ngf6 {[%emt 0:01:26]} 5. Bg2 {[%emt 0:00:52]} e5 {[%emt 0:01:40]} 6. Ne2 {[%emt 0:01:44]} Bc5 {[%emt 0:01:58]} 7. O-O {[%emt 0:06:59]} dxe4 {[%emt 0:01:45]} 8. dxe4 {[%emt 0:03:12]} O-O {[%emt 0:00:20]} 9. h3 {[%emt 0:06:22]} Qe7 {[%emt 0:02:34]} 10. c3 {[%emt 0:06:27]} a5 {[%emt 0:00:54]} 11. Qc2 {[%emt 0:04:12]} Re8 {[%emt 0:03:24]} 12. b3 {[%emt 0:09:57]} Nf8 {[%emt 0:03:04]} 13. a3 {[%emt 0:02:57]} Ng6 {[%emt 0:00:48]} 14. Bb2 {[%emt 0:04:45]} h5 {[%emt 0:10:44]} 15. b4 {[%emt 0:06:12]} Bb6 {[%emt 0:01:36]} 16. Nc4 {[%emt 0:07:04]} Ba7 {[%emt 0:04:10]} 17. Rad1 {[%emt 0:13:22]} Be6 {[%emt 0:03:15]} 18. Nxa5 {[%emt 0:06:45]} Bb6 {[%emt 0:00:16]} 19. Nb3 {[%emt 0:07:22]} Bc4 {[%emt 0:00:11]} 20. Kh2 {[%emt 0:06:30]} Qe6 {[%emt 0:02:18]} 21. Nbc1 {[%emt 0:01:54]} Rad8 {[%emt 0:09:47]} 22. a4 {[%emt 0:01:18]} Rxd1 {[%emt 0:01:34]} 23. Qxd1 {[%emt 0:00:01]} Rd8 {[%emt 0:00:34]} 24. Qe1 {[%emt 0:00:13]} Qd6 {[%emt 0:00:48]} 25. Bf3 {[%emt 0:02:04]} Nf8 {[%emt 0:03:32]} 26. a5 {[%emt 0:00:26]} Ba7 {[%emt 0:00:07]} 27. Ba1 {[%emt 0:01:06]} g5 {[%emt 0:01:39]} 28. Bg2 {[%emt 0:00:25]} Ng6 {[%emt 0:01:22]} 29. f4 {[%emt 0:00:22]} exf4 {[%emt 0:01:31]} 30. gxf4 {[%emt 0:00:05]} gxf4 {[%emt 0:00:55]} 31. Bf3 {[%emt 0:00:11]} Qd2 {[%emt 0:04:32]} 32. Kh1 {[%emt 0:01:02]} Qe3 {[%emt 0:00:55]} 33. Bg2 {[%emt 0:00:58]} Nxe4 {[%emt 0:02:53]} 34. Rf3 {[%emt 0:00:31]} Ng3+ {[%emt 0:00:00]} 35. Kh2 {[%emt 0:00:24]} Qe5 {[%emt 0:00:36]} 36. Rxg3 {[%emt 0:00:10]} fxg3+ {[%emt 0:00:06]} 37. Qxg3 {[%emt 0:00:13]} Bb8 {[%emt 0:02:26]} 38. Qxe5 {[%emt 0:01:04]} Bxe5+ {[%emt 0:00:04]} 39. Kg1 {[%emt 0:00:08]} Bxe2 {[%emt 0:00:50]} 40. Nxe2 {[%emt 0:00:06]} Rd1+ {[%emt 0:00:08]} 0-1

[Event "44th Chess Olympiad Open 2022"]
[Site "Chennai"]
[Date "2022.08.09"]
[Round "11.41"]
[White "Kawuma, Patrick"]
[Black "Nielsen, Hogni Egilstoft"]
[Result "1/2-1/2"]
[ECO "E62"]
[WhiteElo "2270"]
[BlackElo "2414"]
[Annotator "RC"]
[PlyCount "61"]
[EventDate "2022.07.29"]
[EventType "team-tourn"]
[EventCountry "IND"]
[SourceTitle "playchess.com"]
[Source "ChessBase"]
[SourceQuality "1"]
[WhiteTeam "Uganda"]
[BlackTeam "Faroe Islands"]
[WhiteTeamCountry "UGA"]
[BlackTeamCountry "FAI"]
[TimeControl "40/5400+30:1800+30"]

1. c4 {[%emt 0:00:10]} Nf6 {[%emt 0:00:13]} 2. Nf3 {[%emt 0:01:22]} g6 {[%emt 0:00:28]} 3. g3 {[%emt 0:00:22]} Bg7 {[%emt 0:00:07]} 4. Bg2 {[%emt 0:00:06]} O-O {[%emt 0:00:23]} 5. O-O {[%emt 0:00:06]} d6 {[%emt 0:01:48]} 6. d4 {[%emt 0:00:10]} Nc6 {[%emt 0:02:44]} 7. Nc3 {[%emt 0:00:41]} Bg4 {[%emt 0:01:38]} 8. h3 {[%emt 0:07:41]} Bxf3 {[%emt 0:01:31]} 9. Bxf3 {[%emt 0:12:07]} Nd7 {[%emt 0:00:22]} 10. e3 {[%emt 0:01:44]} e5 {[%emt 0:02:26]} 11. dxe5 {[%emt 0:02:35]} Ndxe5 {[%emt 0:08:50]} 12. Be2 {[%emt 0:00:16]} Qd7 {[%emt 0:00:57]} 13. Kh2 {[%emt 0:05:46]} Na5 {[%emt 0:21:06]} 14. Qc2 {[%emt 0:02:16]} Qc6 {[%emt 0:12:41]} 15. b3 {[%emt 0:00:20]} Nf3+ {[%emt 0:06:39]} 16. Bxf3 {[%emt 0:00:24]} Qxf3 {[%emt 0:00:05]} 17. Bb2 {[%emt 0:01:07]} Nc6 {[%emt 0:05:09]} 18. Nd5 {[%emt 0:07:04]} Rac8 {[%emt 0:07:15]} 19. Rae1 {[%emt 0:16:08]} Rfe8 {[%emt 0:10:53]} 20. e4 {[%emt 0:05:40]} Nd4 {[%emt 0:01:43]} 21. Bxd4 {[%emt 0:07:59]} Bxd4 {[%emt 0:00:01]} 22. Qd1 {[%emt 0:00:48]} Qxd1 {[%emt 0:00:55]} 23. Rxd1 {[%emt 0:00:01]} Bg7 {[%emt 0:01:38]} 24. Rfe1 {[%emt 0:00:24]} Kf8 {[%emt 0:01:19]} 25. Kg2 {[%emt 0:00:49]} c6 {[%emt 0:06:24]} 26. Nf4 {[%emt 0:01:12]} Red8 {[%emt 0:00:02]} 27. Rd3 {[%emt 0:02:01]} Rb8 {[%emt 0:01:32]} 28. Red1 {[%emt 0:00:47]} Be5 {[%emt 0:03:29]} 29. Ne2 {[%emt 0:05:25]} Ke7 {[%emt 0:00:02]} 30. f4 {[%emt 0:00:21]} Bg7 {[%emt 0:00:06]} 31. Kf3 {[%emt 0:00:17]} 1/2-1/2

[Event "44th Chess Olympiad Open 2022"]
[Site "Chennai"]
[Date "2022.08.09"]
[Round "11.41"]
[White "Nsubuga, Haruna"]
[Black "Rodgaard, John"]
[Result "1-0"]
[ECO "C00"]
[WhiteElo "2160"]
[BlackElo "2324"]
[Annotator "RC"]
[PlyCount "55"]
[EventDate "2022.07.29"]
[EventType "team-tourn"]
[EventCountry "IND"]
[SourceTitle "playchess.com"]
[Source "ChessBase"]
[SourceQuality "1"]
[WhiteTeam "Uganda"]
[BlackTeam "Faroe Islands"]
[WhiteTeamCountry "UGA"]
[BlackTeamCountry "FAI"]
[TimeControl "40/5400+30:1800+30"]

1. e4 {[%emt 0:00:03]} e6 {[%emt 0:00:17]} 2. Nf3 {[%emt 0:00:05]} d5 {[%emt 0:00:35]} 3. e5 {[%emt 0:00:02]} c5 {[%emt 0:02:36]} 4. b4 {[%emt 0:00:05]} cxb4 {[%emt 0:02:33]} 5. a3 {[%emt 0:00:02]} Qa5 {[%emt 0:00:42]} 6. d4 {[%emt 0:00:47]} Nc6 {[%emt 0:02:42]} 7. Bd3 {[%emt 0:00:11]} Bd7 {[%emt 0:03:58]} 8. O-O {[%emt 0:01:37]} a6 {[%emt 0:04:00]} 9. Bd2 {[%emt 0:05:21]} Rc8 {[%emt 0:11:00]} 10. c3 {[%emt 0:00:19]} bxc3 {[%emt 0:02:02]} 11. Nxc3 {[%emt 0:00:06]} Qc7 {[%emt 0:01:50]} 12. Qb1 {[%emt 0:01:23]} Nge7 {[%emt 0:11:43]} 13. Rc1 {[%emt 0:00:19]} Ng6 {[%emt 0:09:15]} 14. h4 {[%emt 0:00:50]} Be7 {[%emt 0:02:47]} 15. g3 {[%emt 0:01:13]} b5 {[%emt 0:07:06]} 16. a4 {[%emt 0:00:31]} b4 {[%emt 0:00:37]} 17. Nb5 {[%emt 0:00:09]} Qb6 {[%emt 0:11:27]} 18. h5 {[%emt 0:16:32]} axb5 {[%emt 0:02:05]} 19. hxg6 {[%emt 0:00:25]} hxg6 {[%emt 0:09:05]} 20. Bxb5 {[%emt 0:02:14]} O-O {[%emt 0:00:18]} 21. Kg2 {[%emt 0:00:07]} Rc7 {[%emt 0:00:52]} 22. Rh1 {[%emt 0:03:43]} Nxd4 {[%emt 0:10:17]} 23. Be3 {[%emt 0:00:09]} Bc5 {[%emt 0:00:15]} 24. Bxd4 {[%emt 0:00:45]} Bxd4 {[%emt 0:00:04]} 25. Qxb4 {[%emt 0:00:07]} Rc4 {[%emt 0:00:53]} 26. Rh8+ {[%emt 0:00:10]} Kxh8 {[%emt 0:00:05]} 27. Qxf8+ {[%emt 0:00:06]} Kh7 {[%emt 0:00:26]} 28. Rh1# {[%emt 0:00:04]} 1-0

[Event "44th Chess Olympiad Open 2022"]
[Site "Chennai"]
[Date "2022.08.09"]
[Round "11.42"]
[White "Mieles Palau, Daniel"]
[Black "Mansour, Sameer"]
[Result "1-0"]
[ECO "B14"]
[WhiteElo "2364"]
[BlackElo "2275"]
[Annotator "ChessBase"]
[PlyCount "119"]
[EventDate "2022.07.29"]
[EventType "team-tourn"]
[EventCountry "IND"]
[SourceTitle "playchess.com"]
[Source "ChessBase"]
[SourceQuality "1"]
[WhiteTeam "Ecuador"]
[BlackTeam "Jordan"]
[WhiteTeamCountry "ECU"]
[BlackTeamCountry "JOR"]
[TimeControl "40/5400+30:1800+30"]

1. c4 {[%emt 0:00:02]} Nf6 {[%emt 0:02:18]} 2. g3 {[%emt 0:00:26]} g6 {[%emt 0:00:44]} 3. Bg2 {[%emt 0:00:09]} Bg7 {[%emt 0:00:17]} 4. Nc3 {[%emt 0:00:13]} O-O {[%emt 0:00:21]} 5. d4 {[%emt 0:01:02]} c6 {[%emt 0:03:15]} 6. e4 {[%emt 0:01:15]} d5 {[%emt 0:02:00]} 7. cxd5 {[%emt 0:19:36]} cxd5 {[%emt 0:00:53]} 8. exd5 {[%emt 0:00:01]} Na6 {[%emt 0:00:23]} 9. Qb3 {[%emt 0:03:00]} Nc7 {[%emt 0:00:55]} 10. Nge2 {[%emt 0:00:06]} b5 {[%emt 0:05:09]} 11. Bf4 {[%emt 0:20:39]} b4 {[%emt 0:27:59]} 12. Bxc7 {[%emt 0:03:44]} Qxc7 {[%emt 0:00:44]} 13. Qxb4 {[%emt 0:00:01]} Rb8 {[%emt 0:01:55]} 14. Qa3 {[%emt 0:09:35]} Rd8 {[%emt 0:05:18]} 15. O-O {[%emt 0:00:00]} Rd6 {[%emt 0:02:43]} 16. b3 {[%emt 0:06:09]} Ba6 {[%emt 0:04:25]} 17. Rfe1 {[%emt 0:01:57]} Bxe2 {[%emt 0:09:47]} 18. Nxe2 {[%emt 0:00:03]} Nxd5 {[%emt 0:00:16]} 19. Rac1 {[%emt 0:04:53]} Qd7 {[%emt 0:05:21]} 20. Bxd5 {[%emt 0:13:42]} Rxd5 {[%emt 0:00:10]} 21. Rc4 {[%emt 0:00:00]} e5 {[%emt 0:06:25]} 22. Rec1 {[%emt 0:01:25]} exd4 {[%emt 0:02:09]} 23. Nf4 {[%emt 0:04:06]} Re5 {[%emt 0:02:32]} 24. Nd3 {[%emt 0:01:16]} Ree8 {[%emt 0:02:36]} 25. Rc7 {[%emt 0:01:23]} Qf5 {[%emt 0:00:00]} 26. b4 {[%emt 0:00:39]} h5 {[%emt 0:00:05]} 27. h4 {[%emt 0:00:14]} Qf3 {[%emt 0:00:42]} 28. Qb3 {[%emt 0:01:18]} Re2 {[%emt 0:00:48]} 29. Rc8+ {[%emt 0:04:47]} Rxc8 {[%emt 0:01:18]} 30. Rxc8+ {[%emt 0:00:01]} Kh7 {[%emt 0:00:23]} 31. Qd1 {[%emt 0:00:36]} Qe4 {[%emt 0:02:19]} 32. Rc2 {[%emt 0:00:37]} Rxc2 {[%emt 0:00:31]} 33. Qxc2 {[%emt 0:00:18]} Bf8 {[%emt 0:03:32]} 34. Qc4 {[%emt 0:00:42]} Kg7 {[%emt 0:00:54]} 35. a4 {[%emt 0:00:08]} Be7 {[%emt 0:01:41]} 36. b5 {[%emt 0:01:52]} g5 {[%emt 0:00:22]} 37. hxg5 {[%emt 0:00:03]} Bxg5 {[%emt 0:00:03]} 38. a5 {[%emt 0:01:42]} h4 {[%emt 0:02:11]} 39. gxh4 {[%emt 0:00:04]} Qg4+ {[%emt 0:01:07]} 40. Kf1 {[%emt 0:00:06]} Qxh4 {[%emt 0:00:05]} 41. Qd5 {[%emt 0:04:29]} Qh3+ {[%emt 0:08:09]} 42. Ke2 {[%emt 0:00:06]} Qg4+ {[%emt 0:00:31]} 43. Qf3 {[%emt 0:06:34]} Qe6+ {[%emt 0:00:02]} 44. Kf1 {[%emt 0:00:03]} Qa2 {[%emt 0:00:17]} 45. Qf5 {[%emt 0:00:55]} Bd8 {[%emt 0:05:43]} 46. Qg4+ {[%emt 0:15:26]} Kf8 {[%emt 0:00:22]} 47. b6 {[%emt 0:04:20]} axb6 {[%emt 0:00:18]} 48. Qxd4 {[%emt 0:00:19]} Ke8 {[%emt 0:07:58]} 49. Ne5 {[%emt 0:01:13]} Bf6 {[%emt 0:10:04]} 50. axb6 {[%emt 0:00:19]} Qe6 {[%emt 0:01:52]} 51. Qa4+ {[%emt 0:00:57]} Kf8 {[%emt 0:02:18]} 52. Nc6 {[%emt 0:01:56]} Qh3+ {[%emt 0:00:35]} 53. Kg1 {[%emt 0:00:18]} Qd3 {[%emt 0:02:13]} 54. Qb4+ {[%emt 0:00:44]} Ke8 {[%emt 0:00:40]} 55. b7 {[%emt 0:01:08]} Qg6+ {[%emt 0:00:04]} 56. Kh2 {[%emt 0:01:01]} Qh5+ {[%emt 0:01:05]} 57. Kg3 {[%emt 0:00:08]} Be5+ {[%emt 0:01:03]} 58. Nxe5 {[%emt 0:00:22]} Qxe5+ {[%emt 0:00:07]} 59. Qf4 {[%emt 0:00:04]} Qg7+ {[%emt 0:00:10]} 60. Kf3 {[%emt 0:00:18]} 1-0

[Event "44th Chess Olympiad Open 2022"]
[Site "Chennai"]
[Date "2022.08.09"]
[Round "11.42"]
[White "Noboa Silva, Kevin"]
[Black "Aboudi, Marwan"]
[Result "1-0"]
[ECO "C45"]
[WhiteElo "2304"]
[BlackElo "2144"]
[Annotator "RC"]
[PlyCount "61"]
[EventDate "2022.07.29"]
[EventType "team-tourn"]
[EventCountry "IND"]
[SourceTitle "playchess.com"]
[Source "ChessBase"]
[SourceQuality "1"]
[WhiteTeam "Ecuador"]
[BlackTeam "Jordan"]
[WhiteTeamCountry "ECU"]
[BlackTeamCountry "JOR"]
[TimeControl "40/5400+30:1800+30"]

1. e4 {[%emt 0:00:03]} e5 {[%emt 0:00:10]} 2. Nf3 {[%emt 0:00:06]} Nc6 {[%emt 0:00:59]} 3. d4 {[%emt 0:00:07]} exd4 {[%emt 0:00:37]} 4. Nxd4 {[%emt 0:00:07]} Nf6 {[%emt 0:01:20]} 5. Nxc6 {[%emt 0:00:13]} bxc6 {[%emt 0:00:10]} 6. e5 {[%emt 0:00:18]} Nd5 {[%emt 0:00:08]} 7. c4 {[%emt 0:00:12]} Bb4+ {[%emt 0:00:29]} 8. Bd2 {[%emt 0:00:40]} Bxd2+ {[%emt 0:00:07]} 9. Nxd2 {[%emt 0:00:14]} Ne7 {[%emt 0:00:27]} 10. Bd3 {[%emt 0:00:31]} d6 {[%emt 0:01:30]} 11. O-O {[%emt 0:01:31]} dxe5 {[%emt 0:02:04]} 12. Nf3 {[%emt 0:02:29]} Bg4 {[%emt 0:06:25]} 13. h3 {[%emt 0:00:24]} Bh5 {[%emt 0:10:45]} 14. g4 {[%emt 0:01:31]} Bg6 {[%emt 0:01:50]} 15. Nxe5 {[%emt 0:00:28]} Bxd3 {[%emt 0:01:49]} 16. Qxd3 {[%emt 0:00:15]} Qxd3 {[%emt 0:01:06]} 17. Nxd3 {[%emt 0:00:09]} O-O-O {[%emt 0:00:53]} 18. Ne5 {[%emt 0:04:17]} Rhf8 {[%emt 0:10:34]} 19. Rad1 {[%emt 0:06:28]} f6 {[%emt 0:01:15]} 20. Nf3 {[%emt 0:02:53]} c5 {[%emt 0:04:20]} 21. Nd2 {[%emt 0:01:30]} Kb7 {[%emt 0:13:12]} 22. Ne4 {[%emt 0:03:31]} Kb6 {[%emt 0:02:43]} 23. Nc3 {[%emt 0:00:37]} Rd4 {[%emt 0:05:46]} 24. Rde1 {[%emt 0:03:22]} Ng6 {[%emt 0:00:21]} 25. Re6+ {[%emt 0:03:11]} Kb7 {[%emt 0:05:59]} 26. b3 {[%emt 0:02:22]} Nf4 {[%emt 0:02:54]} 27. Re7 {[%emt 0:00:37]} Nxh3+ {[%emt 0:00:08]} 28. Kh2 {[%emt 0:00:08]} Ng5 {[%emt 0:04:08]} 29. Nb5 {[%emt 0:02:05]} Rxg4 {[%emt 0:01:04]} 30. f4 {[%emt 0:00:26]} Rf7 {[%emt 0:05:37]} 31. Nd6+ {[%emt 0:00:09]} 1-0